bitfinex/quotes_SOLUSD_20240825
["timestamp","ask_amount","ask_price","bid_price","bid_amount"]
[1724563395849,6.4174,159.12,159.05,9.74153188]
[1724563397547,7.98889175,159.12,159.05,9.74153188]
[1724563400971,7.98889175,159.12,159.06,1.57333241]
[1724563401174,7.98889175,159.12,159.07,1.57333235]
[1724563401878,7.98889175,159.12,159.05,9.74153188]
[1724563403458,7.98889175,159.12,159.07,9.74153188]
[1724563403459,6.4174,159.12,159.07,9.74153188]
[1724563412158,6.4174,159.12,159.03,5.04374661]
[1724563412479,1.57140566,159.11,159.05,9.74153188]
[1724563412674,1.57140566,159.11,159.06,20.0]
[1724563413891,7.98889539,159.12,159.06,20.0]
[1724563416890,7.98889539,159.12,158.99,14.37352093]
[1724563416891,6.2858,159.09,158.99,14.37352093]
[1724563417088,6.2858,159.09,159.01,9.74153188]
[1724563417295,6.2858,159.09,159.02,0.71925368]
[1724563418470,6.2858,159.09,159.02,20.71925368]
[1724563418893,6.2853,159.1,159.03,10.46109044]
[1724563419092,1.57167514,159.09,159.03,9.74153188]
[1724563419370,1.57168866,159.1,159.03,9.74153188]
[1724563419566,1.57168866,159.1,159.05,9.74153188]
[1724563420510,1.5716241,159.11,159.05,9.74153188]
[1724563420677,1.57162397,159.1,159.05,9.74153188]
[1724563421793,1.57162282,159.11,159.05,9.74153188]
[1724563421991,1.5716236,159.1,159.05,9.74153188]
[1724563422773,1.5716236,159.1,159.03,9.74153188]
[1724563422974,1.5716236,159.1,159.04,20.0]
[1724563423485,45.0,159.11,159.02,9.74153188]
[1724563423688,6.286,159.09,159.03,20.0]
[1724563424671,6.2854,159.1,159.03,20.0]
[1724563424875,6.2854,159.1,159.03,20.71926982]
[1724563425093,1.57172184,159.1,159.04,9.74153188]
[1724563425404,51.2849,159.11,159.04,9.74153188]
[1724563425405,7.85656373,159.11,159.04,9.74153188]
[1724563426275,1.57164901,159.1,159.04,9.74153188]
[1724563428312,22.5086,159.08,158.98,22.65063713]
[1724563428607,1.57195553,159.07,159.01,9.74153188]
[1724563428796,22.5086,159.08,159.01,9.74153188]
[1724563429717,22.5086,159.08,159.02,20.0]
[1724563430709,16.2224,159.08,159.02,20.0]
[1724563432310,16.2224,159.08,159.03,9.74153188]
[1724563435793,16.2224,159.08,159.03,10.46100294]
[1724563436122,16.2224,159.08,159.03,9.74153188]
[1724563437208,28.61,159.12,159.05,9.74153188]
[1724563437408,28.61,159.12,159.05,10.32496075]
[1724563437607,28.61,159.12,159.06,0.71896623]
[1724563438400,28.61,159.12,159.05,9.74153188]
[1724563439595,1.57158713,159.11,159.05,9.74153188]
[1724563440209,1.57158923,159.1,159.05,9.74153188]
[1724563440608,6.285,159.11,159.05,9.74153188]
[1724563445623,28.6096,159.12,159.05,9.74153188]
[1724563445796,30.18127503,159.12,159.05,9.74153188]
[1724563446625,28.6096,159.12,159.05,9.74153188]
[1724563448123,1.57159584,159.11,159.05,9.74153188]
[1724563448429,6.2857,159.09,159.03,0.71900845]
[1724563448725,6.2853,159.1,159.03,20.0]
[1724563448928,6.2861,159.08,159.0,9.74153188]
[1724563449225,1.57201117,159.07,159.0,9.74153188]
[1724563450834,1.57201117,159.07,159.01,20.0]
[1724563451021,1.57201117,159.07,159.0,9.74153188]
[1724563451330,1.57201117,159.07,159.01,20.0]
[1724563452009,6.2861,159.08,159.02,9.74153188]
[1724563452010,1.5720124,159.08,159.02,9.74153188]
[1724563454327,6.2857,159.09,159.02,9.74153188]
[1724563455316,6.2857,159.09,159.02,10.4612983]
[1724563456113,6.2857,159.09,159.02,9.74153188]
[1724563456439,6.2857,159.09,159.02,10.46129715]
[1724563457530,1.57186662,159.08,159.02,9.74153188]
[1724563458519,6.2857,159.09,159.02,9.74153188]
[1724563462009,6.2857,159.09,159.03,1.57364779]
[1724563462338,1.57186337,159.08,159.04,1.57364779]
[1724563462627,1.57186337,159.08,159.05,1.57364779]
[1724563462832,1.57186337,159.08,159.06,1.57364779]
[1724563463035,1.57186337,159.08,159.07,1.57364779]
[1724563463211,6.2857,159.09,159.07,1.57364779]
[1724563463411,6.2857,159.09,159.02,9.74153188]
[1724563463713,6.2857,159.09,159.03,1.57364806]
[1724563463910,6.2857,159.09,159.02,9.74153188]
[1724563464332,6.2857,159.09,159.03,1.57364866]
[1724563464534,6.2857,159.09,159.04,1.57364866]
[1724563464739,1.57186281,159.08,159.02,9.74153188]
[1724563474948,1.57185585,159.07,159.01,20.0]
[1724563475128,1.57185585,159.07,159.0,9.74153188]
[1724563475323,7.67565585,159.07,159.02,20.0]
[1724563475525,29.39895585,159.07,159.02,20.0]
[1724563475841,27.8271,159.07,159.02,20.0]
[1724563476022,27.8271,159.07,159.0,20.0]
[1724563478350,27.8271,159.07,159.01,2.66052177]
[1724563478873,27.8271,159.07,159.02,2.66052177]
[1724563479078,27.8271,159.07,159.0,20.72010152]
[1724563479284,27.8271,159.07,159.01,2.66042149]
[1724563479573,27.8271,159.07,159.02,2.66042149]
[1724563479778,27.8271,159.07,159.0,20.72010152]
[1724563480080,27.8271,159.07,159.01,2.66126775]
[1724563480376,27.8271,159.07,159.02,2.66126775]
[1724563480575,27.8271,159.07,159.0,20.72010152]
[1724563480782,27.8271,159.07,159.01,2.66128902]
[1724563481080,27.8271,159.07,159.0,20.72010152]
[1724563481081,21.5405,159.07,159.02,2.66128902]
[1724563481373,21.5405,159.07,159.01,2.66128902]
[1724563481571,21.5405,159.07,159.0,20.72010152]
[1724563481755,21.5405,159.07,159.01,10.46155543]
[1724563481954,21.5405,159.07,159.02,20.71992744]
[1724563482453,21.5405,159.07,159.02,20.0]
[1724563483046,29.3989454,159.07,158.96,6.56391472]
[1724563483250,29.3989454,159.07,158.99,9.74153188]
[1724563483466,29.3989454,159.07,159.0,20.0]
[1724563488573,29.3989454,159.07,158.99,9.74153188]
[1724563488574,23.1124454,159.07,158.96,6.56391472]
[1724563488775,54.74153188,159.06,158.97,9.74153188]
[1724563488983,54.74153188,159.06,158.94,16.2514]
[1724563488984,1.57227413,159.05,158.94,16.2514]
[1724563489280,54.74153188,159.06,158.94,16.2514]
[1724563489281,6.2881,159.03,158.95,9.74153188]
[1724563489463,1.57244336,159.02,158.95,9.74153188]
[1724563490369,1.57244336,159.02,158.94,16.2514]
[1724563490674,1.57242858,159.03,158.95,29.74153188]
[1724563492660,1.57242141,159.05,158.95,29.74153188]
[1724563492866,1.57242141,159.04,158.95,29.74153188]
[1724563493561,46.57242141,159.04,158.95,29.74153188]
[1724563498778,52.86012141,159.04,158.95,29.74153188]
[1724563498965,6.2872,159.06,158.97,9.74153188]
[1724563499169,6.2872,159.06,158.98,0.72055233]
[1724563499392,45.0,159.05,158.98,0.72055233]
[1724563499763,7.8595585,159.05,158.97,9.74153188]
[1724563500683,1.57223983,159.04,158.97,9.74153188]
[1724563500868,6.2873,159.05,158.97,9.74153188]
[1724563501188,7.85954603,159.05,158.97,9.74153188]
[1724563501695,21.5405,159.07,159.01,9.74153188]
[1724563501877,21.5405,159.07,159.02,0.71995926]
[1724563502057,21.5405,159.07,159.02,0.71998149]
[1724563503094,21.5405,159.07,159.01,9.74153188]
[1724563503669,21.5405,159.07,159.02,0.71935396]
[1724563504592,21.5405,159.07,159.01,9.74153188]
[1724563505066,21.5405,159.07,159.02,0.71876587]
[1724563508577,21.5405,159.07,159.03,9.74153188]
[1724563512776,1.57190671,159.06,159.03,9.74153188]
[1724563512983,21.5405,159.07,159.03,9.74153188]
[1724563524703,21.5405,159.07,159.04,1.57355024]
[1724563524902,21.5405,159.07,159.05,1.57355024]
[1724563525100,21.5405,159.07,159.06,1.57355024]
[1724563533192,21.5405,159.07,159.03,9.74153188]
[1724563533392,21.5405,159.07,159.04,0.7186776]
[1724563533601,21.5405,159.07,159.05,1.57355494]
[1724563533817,21.5405,159.07,159.06,1.57355494]
[1724563536201,6.1038,159.07,159.06,1.57355494]
[1724563537516,1.5717511,159.1,159.06,1.57355494]
[1724563537819,1.5717511,159.1,159.03,9.74153188]
[1724563538021,1.5717511,159.1,159.04,5.90497948]
[1724563538199,1.5717511,159.1,159.03,9.74153188]
[1724563540723,1.5717511,159.1,159.03,9.74153188]
[1724563542318,1.5717511,159.1,159.04,2.66016856]
[1724563543002,1.5717511,159.1,159.03,9.74153188]
[1724563543207,1.5717511,159.1,159.04,2.66000371]
[1724563543419,1.5717511,159.1,159.03,9.74153188]
[1724563543600,1.5717511,159.1,159.04,2.65992066]
[1724563543799,52.8570511,159.1,159.04,2.66002572]
[1724563544413,52.8570511,159.1,159.03,9.74153188]
[1724563544597,52.8570511,159.1,159.04,2.66014549]
[1724563544924,52.8570511,159.1,159.05,2.65997948]
[1724563545221,52.8570511,159.1,159.04,2.66001936]
[1724563545422,52.8570511,159.1,159.05,2.66001936]
[1724563545614,52.8570511,159.1,159.03,9.74153188]
[1724563545819,52.8570511,159.1,159.04,2.66000513]
[1724563546308,52.8570511,159.1,159.05,2.66000513]
[1724563546509,52.8570511,159.1,159.03,9.74153188]
[1724563546711,52.8570511,159.1,159.04,2.66000346]
[1724563546915,52.8570511,159.1,159.05,2.66000346]
[1724563547093,52.8570511,159.1,159.03,9.74153188]
[1724563547297,52.8570511,159.1,159.04,2.66000701]
[1724563547596,52.8570511,159.1,159.05,2.66000701]
[1724563547795,52.8570511,159.1,159.03,9.74153188]
[1724563547998,52.8570511,159.1,159.04,2.66003955]
[1724563548303,52.8570511,159.1,159.05,2.66003955]
[1724563548499,52.8570511,159.1,159.03,9.74153188]
[1724563548717,52.8570511,159.1,159.04,2.66009242]
[1724563549034,52.8570511,159.1,159.05,2.66041516]
[1724563549206,52.8570511,159.1,159.03,9.74153188]
[1724563549404,52.8570511,159.1,159.02,9.74153188]
[1724563549604,52.8570511,159.1,159.04,2.66039159]
[1724563549807,52.8570511,159.1,159.05,2.66022523]
[1724563550011,51.19543462,159.1,159.02,9.74153188]
[1724563550324,1.4809643,159.09,159.03,2.66030498]
[1724563550525,1.4809643,159.09,159.04,2.66030498]
[1724563550818,1.4809643,159.09,159.02,9.74153188]
[1724563550819,1.4809643,159.09,159.05,2.66030498]
[1724563551021,1.4809643,159.09,159.06,2.66030498]
[1724563551221,1.4809643,159.09,159.02,9.74153188]
[1724563551424,1.4809643,159.09,159.03,2.66032521]
[1724563551628,1.4809643,159.09,159.04,2.66032521]
[1724563551798,1.4809643,159.09,159.05,2.66032521]
[1724563552000,1.4809643,159.09,159.06,2.66032521]
[1724563552201,1.4809643,159.09,159.02,9.74153188]
[1724563552402,1.4809643,159.09,159.03,2.66034199]
[1724563552607,1.4809643,159.09,159.02,9.74153188]
[1724563553027,1.4809643,159.09,159.04,2.66031169]
[1724563553335,1.4809643,159.09,159.02,9.74153188]
[1724563566419,45.0,159.1,159.02,9.74153188]
[1724563566623,27.4058,159.11,159.04,9.74153188]
[1724563567032,1.4809643,159.1,159.04,9.74153188]
[1724563567520,27.4058,159.11,159.04,9.74153188]
[1724563568714,21.1209,159.11,159.04,9.74153188]
[1724563568920,21.1209,159.11,159.06,9.74153188]
[1724563570433,6.0743,159.11,159.06,9.74153188]
[1724563570743,21.8375,159.15,159.06,9.74153188]
[1724563570927,21.8375,159.15,159.08,9.74153188]
[1724563571859,21.8375,159.15,159.09,1.2569724]
[1724563572352,21.8375,159.15,159.1,9.74153188]
[1724563573351,21.8375,159.15,158.98,22.49100351]
[1724563573352,12.8712,159.12,158.98,22.49100351]
[1724563573555,1.4809643,159.11,159.03,9.74153188]
[1724563574470,1.4809643,159.1,159.03,9.74153188]
[1724563574637,1.4809643,159.1,159.04,20.0]
[1724563574954,1.4809643,159.11,159.04,20.0]
[1724563578540,1.4809643,159.1,159.04,20.0]
[1724563579325,1.4809643,159.11,159.04,20.0]
[1724563583563,6.5864,159.12,159.05,9.74153188]
[1724563584358,6.5864,159.12,159.04,20.0]
[1724563584359,6.5864,159.12,159.07,9.74153188]
[1724563592786,15.2511,159.15,159.09,9.74153188]
[1724563593072,15.2511,159.15,159.1,1.25684599]
[1724563593278,15.2511,159.15,159.1,1.25684861]
[1724563593581,15.2511,159.15,159.11,10.99830149]
[1724563593773,15.2511,159.15,159.11,9.74153188]
[1724563598345,15.2511,159.15,159.12,1.57293213]
[1724563598865,15.2511,159.15,159.11,9.74153188]
[1724563601171,1.4809643,159.14,159.09,9.74153188]
[1724563602158,15.2511,159.15,159.09,9.74153188]
[1724563602387,16.7320643,159.15,159.09,9.74153188]
[1724563603760,15.2511,159.15,159.09,9.74153188]
[1724563604992,16.7320643,159.15,159.09,9.74153188]
[1724563605492,15.2511,159.15,159.09,9.74153188]
[1724563610862,16.7320643,159.15,159.09,9.74153188]
[1724563611784,1.4809643,159.14,159.09,9.74153188]
[1724563612484,16.7320643,159.15,159.09,9.74153188]
[1724563618117,1.4809643,159.14,159.05,8.93806905]
[1724563618273,1.4809643,159.14,159.06,29.74153188]
[1724563618475,1.4809643,159.14,159.06,9.74153188]
[1724563618683,1.4809643,159.14,159.07,20.0]
[1724563619702,1.4809643,159.14,159.08,9.74153188]
[1724563620003,1.4809643,159.14,159.09,20.0]
[1724563622477,15.2511,159.15,159.09,21.2570814]
[1724563622778,1.4809643,159.14,159.09,20.0]
[1724563626605,1.4809643,159.14,159.09,18.971098]
[1724563627996,16.7320643,159.15,159.09,18.971098]
[1724563628394,1.4809643,159.14,159.09,18.971098]
[1724563629182,16.7320643,159.15,159.09,18.971098]
[1724563630208,16.7320643,159.15,159.09,27.92041072]
[1724563632212,16.7320643,159.15,159.09,18.971098]
[1724563632406,1.4809643,159.14,159.09,27.92405261]
[1724563633807,16.7320643,159.15,159.09,27.92405261]
[1724563634313,16.7320643,159.15,159.1,8.95295461]
[1724563635110,15.2511,159.15,159.1,8.95295461]
[1724563635816,15.2511,159.15,159.1,8.95281362]
[1724563636114,15.2511,159.15,159.1,18.6943455]
[1724563637407,15.2511,159.15,159.1,9.74153188]
[1724563637989,15.2511,159.15,159.1,18.69465734]
[1724563638192,15.2511,159.15,159.1,9.74153188]
[1724563638810,15.2511,159.15,159.1,10.99845839]
[1724563639691,15.2511,159.15,159.11,8.95270052]
[1724563641019,6.0922,159.16,159.11,8.95270052]
[1724563641186,15.521,159.19,159.12,39.95097]
[1724563641389,15.521,159.19,159.13,1.25660449]
[1724563642214,17.0019643,159.19,159.13,8.94818331]
[1724563642685,23.2839643,159.19,159.13,8.94818331]
[1724563642886,23.2839643,159.19,159.12,29.74153188]
[1724563643196,23.2839643,159.19,159.12,20.0]
[1724563643398,23.2839643,159.19,159.11,28.94818331]
[1724563643583,17.0019643,159.19,159.12,8.94818331]
[1724563643787,23.2840643,159.19,159.11,20.0]
[1724563644121,26.74349618,159.19,159.11,20.0]
[1724563644407,26.74349618,159.19,159.06,6.1628]
[1724563644408,6.2834,159.15,159.08,8.95529699]
[1724563644614,1.4809643,159.14,159.06,9.74153188]
[1724563644803,1.4809643,159.14,159.07,8.95735904]
[1724563645385,1.4809643,159.14,159.06,9.74153188]
[1724563645711,1.4809643,159.14,159.07,20.0]
[1724563647198,6.2029,159.16,159.08,10.99859934]
[1724563647516,7.6838643,159.16,159.09,20.0]
[1724563647886,13.9668643,159.16,159.09,20.0]
[1724563648118,45.0,159.15,159.09,20.0]
[1724563648298,1.4809643,159.14,159.09,20.0]
[1724563649923,0.817806,159.29,159.16,21.761]
[1724563650232,0.817806,159.29,159.27,9.74153188]
[1724563651511,0.817806,159.29,159.28,2.88281364]
[1724563652502,0.817806,159.29,159.26,9.74153188]
[1724563652700,0.817806,159.29,159.27,2.88286644]
[1724563652917,0.817806,159.29,159.26,9.74153188]
[1724563653116,0.817806,159.29,159.27,2.88272311]
[1724563653324,0.817806,159.29,159.26,9.74153188]
[1724563655327,0.817806,159.29,159.22,7.80455408]
[1724563655625,0.817806,159.29,159.23,32.62628062]
[1724563655831,0.817806,159.29,159.24,2.88474874]
[1724563656001,0.817806,159.29,159.23,29.74153188]
[1724563656324,0.817806,159.29,159.24,2.88360339]
[1724563656530,0.817806,159.29,159.24,2.88302906]
[1724563657322,0.817806,159.29,159.23,29.74153188]
[1724563659130,0.817806,159.29,159.24,1.57163539]
[1724563659326,0.817806,159.29,159.23,29.74153188]
[1724563659636,0.817806,159.29,159.24,1.57165264]
[1724563660611,0.817806,159.29,159.24,1.57163511]
[1724563661218,0.817806,159.29,159.23,29.74153188]
[1724563661731,0.817806,159.29,159.24,1.57165279]
[1724563661933,0.817806,159.29,159.24,2.56799625]
[1724563662132,0.817806,159.29,159.24,1.57165279]
[1724563663030,0.817806,159.29,159.23,29.74153188]
[1724563665442,0.817806,159.29,159.24,1.57151272]
[1724563665599,0.817806,159.29,159.25,9.74153188]
[1724563672754,0.817806,159.29,159.26,1.25553139]
[1724563675048,0.817806,159.29,159.27,1.25545255]
[1724563676154,0.817806,159.29,159.26,20.0]
[1724563677240,0.317806,159.29,159.26,20.0]
[1724563679049,0.317806,159.29,159.27,9.74153188]
[1724563679645,0.317806,159.29,159.28,1.25545442]
[1724563681236,0.317806,159.29,159.26,20.0]
[1724563681438,6.148006,159.31,159.22,9.74153188]
[1724563681643,6.148006,159.31,159.23,21.57161522]
[1724563681953,12.425106,159.31,159.24,1.57158912]
[1724563682142,12.425106,159.31,159.23,21.25577488]
[1724563682535,45.0,159.3,159.23,21.25577488]
[1724563684146,6.148006,159.31,159.24,1.25583877]
[1724563684332,6.148006,159.31,159.25,1.57137073]
[1724563684532,6.148006,159.31,159.24,1.25583877]
[1724563684755,6.148006,159.31,159.25,1.57156839]
[1724563685132,6.148006,159.31,159.24,1.25583877]
[1724563685859,6.148006,159.31,159.25,1.57159851]
[1724563686233,6.148006,159.31,159.24,1.25583877]
[1724563686432,6.148006,159.31,159.25,1.57160094]
[1724563686647,6.148006,159.31,159.23,20.0]
[1724563686856,6.148006,159.31,159.24,1.57160955]
[1724563687060,6.148006,159.31,159.25,2.82733951]
[1724563687364,6.148006,159.31,159.25,1.25572996]
[1724563687942,5.648006,159.31,159.25,1.25572996]
[1724563688146,5.648006,159.31,159.24,1.25571076]
[1724563688460,5.648006,159.31,159.25,1.57160699]
[1724563688775,5.648006,159.31,159.23,20.0]
[1724563688936,5.648006,159.31,159.24,1.57159846]
[1724563689261,5.648006,159.31,159.25,1.57159846]
[1724563689561,5.648006,159.31,159.22,9.74153188]
[1724563689747,5.648006,159.31,159.23,21.57160767]
[1724563689943,5.648006,159.31,159.24,12.56798459]
[1724563690262,5.648006,159.31,159.25,21.57160767]
[1724563690557,5.648006,159.31,159.26,1.57160767]
[1724563690757,5.648006,159.31,159.25,20.0]
[1724563691059,5.648006,159.31,159.26,1.57160593]
[1724563691260,5.648006,159.31,159.25,20.0]
[1724563691459,5.648006,159.31,159.26,1.57160593]
[1724563691672,5.648006,159.31,159.27,1.57160593]
[1724563691841,5.648006,159.31,159.25,20.0]
[1724563692043,5.648006,159.31,159.26,1.57160583]
[1724563692245,5.648006,159.31,159.27,1.57160583]
[1724563692460,5.648006,159.31,159.28,1.57160583]
[1724563692771,5.648006,159.31,159.25,20.0]
[1724563693066,5.648006,159.31,159.26,1.57161524]
[1724563693251,5.648006,159.31,159.27,1.57161524]
[1724563693452,5.648006,159.31,159.28,1.57161524]
[1724563693763,5.648006,159.31,159.29,1.57161524]
[1724563693964,5.648006,159.31,159.25,20.0]
[1724563694351,5.648006,159.31,159.26,13.69543599]
[1724563694552,5.648006,159.31,159.27,21.57160703]
[1724563694757,5.648006,159.31,159.28,1.57160703]
[1724563694950,5.648006,159.31,159.29,1.57160703]
[1724563695274,5.648006,159.31,159.3,1.57160703]
[1724563697573,5.648006,159.31,159.3,5.89076022]
[1724563697748,5.648006,159.31,159.3,13.69475652]
[1724563698643,5.648006,159.31,159.3,5.89076022]
[1724563700262,5.648006,159.31,159.3,4.31915319]
[1724563700941,5.648006,159.31,159.3,5.89068869]
[1724563701656,5.648006,159.31,159.29,7.80274234]
[1724563701849,5.648006,159.31,159.27,4.67952714]
[1724563701850,15.134,159.28,159.18,7.80573603]
[1724563702056,9.74153188,159.21,159.2,9.6990386]
[1724563702258,9.74153188,159.22,159.2,14.38120497]
[1724563702587,9.74153188,159.22,159.21,2.65507472]
[1724563702755,61.02213188,159.22,159.19,7.04941402]
[1724563703063,9.74153188,159.2,159.15,7.05265883]
[1724563703263,6.2814,159.2,159.1,7.80573603]
[1724563703471,22.764,159.21,159.11,9.67300918]
[1724563703472,9.74153188,159.17,159.11,9.67300918]
[1724563703651,6.2818,159.19,159.12,7.05295424]
[1724563703963,9.74153188,159.17,159.13,2.62005494]
[1724563704170,6.2818,159.19,159.09,15.7576]
[1724563704369,6.2818,159.19,159.1,2.62084497]
[1724563704370,54.74153188,159.18,159.1,2.62084497]
[1724563704570,9.74153188,159.16,159.11,2.62084497]
[1724563704783,9.74153188,159.16,159.1,2.62084497]
[1724563704960,9.74153188,159.16,159.11,2.62084497]
[1724563705150,9.74153188,159.16,159.1,2.62084497]
[1724563705974,9.74153188,159.16,159.1,22.62084497]
[1724563706173,6.2826,159.17,159.1,20.0]
[1724563706367,6.2826,159.17,159.06,9.74153188]
[1724563706551,6.2826,159.17,159.06,12.36374884]
[1724563706552,9.74153188,159.14,159.06,12.36374884]
[1724563707792,9.74153188,159.14,159.07,20.0]
[1724563708769,9.74153188,159.14,159.08,1.25705871]
[1724563709473,9.74153188,159.16,159.08,1.25705871]
[1724563709782,9.74153188,159.16,159.05,6.55879553]
[1724563709783,9.74153188,159.14,159.06,20.0]
[1724563710485,9.74153188,159.14,159.07,1.25706034]
[1724563710779,9.74153188,159.14,159.06,20.0]
[1724563711983,45.0,159.15,159.06,20.0]
[1724563711984,9.74153188,159.11,159.06,20.0]
[1724563712164,9.74153188,159.11,159.0,22.0841]
[1724563712363,9.74153188,159.11,159.01,16.31053952]
[1724563713465,9.74153188,159.11,159.02,20.0]
[1724563714159,9.74153188,159.11,159.03,1.57338649]
[1724563714384,9.74153188,159.11,159.02,20.0]
[1724563714681,9.74153188,159.11,159.03,9.74153188]
[1724563715179,9.74153188,159.11,159.04,20.0]
[1724563716862,9.74153188,159.11,159.02,20.0]
[1724563717064,9.74153188,159.11,159.03,9.74153188]
[1724563717364,9.74153188,159.11,159.04,20.0]
[1724563719198,9.74153188,159.11,159.02,20.0]
[1724563720573,6.2845,159.12,159.02,20.0]
[1724563720772,45.0,159.11,159.02,20.0]
[1724563724892,45.0,159.11,159.01,20.0]
[1724563725103,45.0,159.11,159.01,29.74153188]
[1724563730599,22.764,159.13,159.05,9.74153188]
[1724563731397,22.764,159.13,159.02,1.57325549]
[1724563731600,22.764,159.13,159.03,9.74153188]
[1724563731781,22.764,159.13,159.04,20.0]
[1724563732196,29.0482,159.13,159.04,20.0]
[1724563732708,45.0,159.12,159.04,21.25730309]
[1724563733001,45.0,159.12,159.05,1.25730309]
[1724563733404,45.0,159.12,159.04,20.0]
[1724563733582,9.74153188,159.1,159.0,22.32536815]
[1724563733787,9.74153188,159.1,159.01,1.5733948]
[1724563734890,9.74153188,159.1,159.01,21.5733948]
[1724563735092,9.74153188,159.1,159.01,20.0]
[1724563736408,9.74153188,159.1,159.02,1.57344092]
[1724563736785,45.0,159.09,159.01,20.0]
[1724563737406,45.0,159.09,159.02,1.57347622]
[1724563738582,9.74153188,159.06,159.02,1.57347622]
[1724563738803,9.74153188,159.04,158.96,1.57347622]
[1724563739010,9.74153188,159.04,158.97,6.56937411]
[1724563739485,9.74153188,159.04,158.97,8.14304943]
[1724563739809,9.74153188,159.04,158.96,1.57367532]
[1724563740197,6.5297,159.08,158.99,9.74153188]
[1724563740502,6.5297,159.08,159.01,9.74153188]
[1724563740708,45.0,159.07,159.01,9.74153188]
[1724563741692,45.0,159.07,158.99,9.74153188]
[1724563742003,45.0,159.07,159.0,21.57361504]
[1724563742197,45.0,159.07,159.01,1.57361504]
[1724563743083,45.0,159.07,158.99,9.74153188]
[1724563743084,45.0,159.07,159.0,21.57361504]
[1724563743286,45.0,159.07,159.01,1.57361504]
[1724563743509,45.0,159.07,159.02,1.57361504]
[1724563743690,12.8158,159.08,159.0,20.0]
[1724563743691,6.5297,159.08,159.03,1.57361504]
[1724563744013,6.5297,159.08,159.02,1.57361504]
[1724563744392,6.5297,159.08,159.03,1.57361504]
[1724563744707,6.5297,159.08,159.04,1.57361504]
[1724563744902,6.5297,159.08,159.02,1.57361504]
[1724563745202,6.5297,159.08,159.03,1.57361504]
[1724563745386,6.5297,159.08,159.04,1.57361504]
[1724563745586,6.5297,159.08,159.05,1.57361504]
[1724563745804,6.5297,159.08,159.02,2.86501261]
[1724563746007,6.5297,159.08,159.03,4.43861837]
[1724563746203,6.5297,159.08,159.04,1.57360576]
[1724563746406,6.5297,159.08,159.05,1.57360576]
[1724563746612,6.5297,159.08,159.06,1.57360576]
[1724563746811,6.5297,159.08,159.01,9.74153188]
[1724563747004,6.5297,159.08,159.02,4.43774509]
[1724563747205,6.5297,159.08,159.03,4.43774509]
[1724563747512,6.5297,159.08,159.04,4.43774509]
[1724563747703,6.5297,159.08,159.05,4.43774509]
[1724563747902,6.5297,159.08,159.06,4.43774509]
[1724563748106,6.5297,159.08,159.02,2.62502563]
[1724563748414,6.5297,159.08,159.03,2.62502563]
[1724563748610,6.5297,159.08,159.04,2.62502563]
[1724563748793,6.5297,159.08,159.02,2.62502563]
[1724563748992,6.5297,159.08,159.03,2.62502563]
[1724563749196,6.5297,159.08,159.04,2.62502563]
[1724563749402,6.5297,159.08,159.01,9.74153188]
[1724563749606,6.5297,159.08,159.02,2.62516137]
[1724563749908,6.5297,159.08,159.03,2.62516137]
[1724563750111,6.5297,159.08,159.04,2.62516137]
[1724563750309,6.5297,159.08,159.05,2.62507767]
[1724563750501,6.5297,159.08,159.01,9.74153188]
[1724563750704,6.2853,159.1,159.03,16.403]
[1724563750915,6.5297,159.18,159.09,9.74153188]
[1724563751126,6.5297,159.18,159.12,9.74153188]
[1724563751297,6.5297,159.18,159.13,2.62507909]
[1724563751491,6.5297,159.18,159.14,2.62507909]
[1724563751697,6.5297,159.18,159.13,2.62507909]
[1724563751922,6.5297,159.18,159.14,2.62507909]
[1724563752122,6.5297,159.18,159.12,2.61971165]
[1724563752290,6.5297,159.18,159.13,2.61971165]
[1724563752613,6.5297,159.18,159.11,4.31319351]
[1724563752821,6.5297,159.18,159.12,2.61975216]
[1724563752999,6.5297,159.18,159.13,2.61975216]
[1724563753319,6.5297,159.18,159.11,2.61974958]
[1724563753517,6.5297,159.18,159.12,2.61974958]
[1724563753713,45.0,159.17,159.13,2.61974958]
[1724563754013,45.0,159.17,159.12,2.61974958]
[1724563754218,45.0,159.17,159.13,2.61974958]
[1724563754419,45.0,159.17,159.11,2.61974958]
[1724563754627,45.0,159.17,159.12,2.61974958]
[1724563754790,45.0,159.17,159.11,2.61974958]
[1724563754994,45.0,159.17,159.12,2.61974958]
[1724563755334,45.0,159.17,159.11,2.61974958]